bitfinex-derivatives/quotes_SOLF0:USTF0_20250101
["timestamp","ask_amount","ask_price","bid_price","bid_amount"]
[1735747577307,3.06,191.54,191.48,13.12374394]
[1735747577903,3.06,191.54,191.52,2.6161]
[1735747578305,3.06,191.53,191.48,13.12374394]
[1735747579009,3.06,191.53,191.52,2.6162]
[1735747580307,3.06,191.53,191.5,2.6164]
[1735747580812,3.06,191.53,191.48,13.12374394]
[1735747581715,3.06,191.53,191.49,2.6165]
[1735747581910,3.06,191.53,191.45,13.12374394]
[1735747582302,2.6166,191.49,191.45,13.12374394]
[1735747582503,3.06,191.48,191.42,13.12374394]
[1735747583510,3.06,191.48,191.44,2.6172]
[1735747584211,5.6768,191.48,191.42,15.74114394]
[1735747584406,3.06,191.48,191.42,13.12374394]
[1735747584710,13.12374394,191.54,191.42,13.12374394]
[1735747584912,3.06,191.53,191.42,13.12374394]
[1735747585611,2.6167,191.48,191.44,2.6171]
[1735747585813,3.06,191.47,191.44,2.6171]
[1735747586605,5.6769,191.47,191.42,15.74114394]
[1735747586810,3.06,191.47,191.42,13.12374394]
[1735747587403,2.6171,191.46,191.42,13.12374394]
[1735747587613,3.06,191.47,191.42,13.12374394]
[1735747588111,5.6769,191.47,191.42,15.74114394]
[1735747589413,2.6171,191.46,191.42,13.12374394]
[1735747590019,3.06,191.47,191.41,2.6177]
[1735747590215,2.6172,191.45,191.41,2.6177]
[1735747591717,2.6172,191.45,191.39,15.74154394]
[1735747592322,2.6172,191.45,191.4,2.6178]
[1735747592915,3.06,191.47,191.4,2.6178]
[1735747593117,2.6173,191.44,191.4,2.6178]
[1735747593512,2.6175,191.43,191.39,13.12374394]
[1735747593713,3.06,191.42,191.38,2.618]
[1735747594620,3.06,191.42,191.36,13.12374394]
[1735747594924,3.06,191.42,191.39,13.12374394]
[1735747595124,3.06,191.42,191.4,2.6178]
[1735747596219,3.06,191.42,191.38,2.618]
[1735747596718,3.06,191.42,191.36,13.12374394]
[1735747597720,3.06,191.42,191.39,15.74154394]
[1735747597927,3.06,191.44,191.39,13.12374394]
[1735747598121,3.06,191.44,191.42,13.12374394]
[1735747599826,3.06,191.44,191.42,15.74124394]
[1735747601126,3.06,191.44,191.42,13.12374394]
[1735747601621,3.06,191.44,191.4,2.6177]
[1735747601830,3.06,191.44,191.39,13.12374394]
[1735747602328,3.06,191.44,191.39,15.74164394]
[1735747603933,3.06,191.44,191.36,13.12374394]
[1735747604133,2.6176,191.42,191.37,2.6181]
[1735747604330,2.6176,191.42,191.36,13.12374394]
[1735747604534,5.6773,191.44,191.4,2.6178]
[1735747605429,5.6773,191.44,191.39,2.6179]
[1735747606234,5.6773,191.44,191.4,2.6178]
[1735747607237,3.06,191.44,191.39,13.12374394]
[1735747607436,3.06,191.44,191.42,13.12374394]
[1735747607936,3.06,191.44,191.43,2.6174]
[1735747608238,3.06,191.44,191.43,11.01864643]
[1735747610234,3.06,191.44,191.43,15.74353508]
[1735747611538,3.06,191.44,191.42,2.6175]
[1735747611836,3.06,191.44,191.4,13.12613508]
[1735747612039,3.06,191.44,191.43,2.6174]
[1735747612730,3.2163,191.49,191.46,2.6169]
[1735747612933,3.06,191.48,191.46,2.6169]
[1735747614837,3.06,191.48,191.47,2.6169]
[1735747615244,2.6161,191.53,191.49,2.6166]
[1735747615435,3.06,191.52,191.46,13.12613508]
[1735747615834,33.85936984,191.54,191.48,2.6167]
[1735747616039,3.06,191.51,191.48,2.6167]
[1735747616540,5.6763,191.51,191.46,15.74303508]
[1735747616737,3.06,191.51,191.43,13.12613508]
[1735747617138,3.06,191.51,191.44,2.6172]
[1735747617139,2.6166,191.49,191.44,2.6172]
[1735747617335,2.6166,191.49,191.43,13.12613508]
[1735747617743,2.6165,191.5,191.45,2.6171]
[1735747618243,3.06,191.51,191.43,13.12613508]
[1735747618447,3.06,191.51,191.46,13.12613508]
[1735747619442,3.06,191.51,191.47,2.6168]
[1735747620244,3.06,191.5,191.46,13.12613508]
[1735747621546,3.06,191.5,191.47,2.6168]
[1735747621745,3.06,191.5,191.46,13.12613508]
[1735747622645,3.06,191.5,191.46,15.74303508]
[1735747622838,3.06,191.5,191.46,13.12613508]
[1735747623239,3.06,191.51,191.49,13.12613508]
[1735747623445,3.06,191.52,191.49,13.12613508]
[1735747623847,3.06,191.52,191.5,2.6164]
[1735747624144,3.06,191.52,191.49,13.12613508]
[1735747624345,3.06,191.52,191.49,15.74273508]
[1735747624550,5.6763,191.52,191.46,13.12613508]
[1735747624740,3.06,191.52,191.46,13.12613508]
[1735747625138,3.06,191.52,191.49,13.12613508]
[1735747625446,10.40071707,191.58,191.49,13.12613508]
[1735747625643,3.04,191.57,191.49,13.12613508]
[1735747626146,1.4973,191.59,191.52,13.12613508]
[1735747626147,3.04,191.56,191.52,13.12613508]
[1735747626347,1.4973,191.59,191.52,13.12613508]
[1735747626539,3.04,191.58,191.52,13.12613508]
[1735747627446,1.5364,191.6,191.56,2.6156]
[1735747627635,3.04,191.59,191.56,2.6156]
[1735747629046,3.04,191.59,191.55,13.12613508]
[1735747629347,3.04,191.59,191.55,2.6157]
[1735747631047,3.04,191.59,191.53,2.6159]
[1735747631748,3.04,191.59,191.52,13.12613508]
[1735747632448,5.6553,191.59,191.53,2.616]
[1735747632648,3.04,191.59,191.52,13.12613508]
[1735747633247,3.04,191.59,191.55,2.6157]
[1735747633643,3.04,191.59,191.52,13.12613508]
[1735747633849,5.6553,191.59,191.54,2.6159]
[1735747634447,3.04,191.59,191.52,13.12613508]
[1735747634651,2.6155,191.57,191.52,15.74233508]
[1735747634951,3.04,191.59,191.52,13.12613508]
[1735747635347,5.6553,191.59,191.53,2.616]
[1735747637450,3.04,191.59,191.55,2.6157]
[1735747638049,4.1515,191.6,191.55,2.6157]
[1735747638245,3.04,191.59,191.56,8.39208242]
[1735747639053,5.6552,191.59,191.56,8.39208242]
[1735747639554,2.6154,191.58,191.54,8.39208242]
[1735747639752,3.04,191.59,191.54,8.39208242]
[1735747640850,3.04,191.59,191.56,8.39208242]
[1735747641054,3.04,191.59,191.58,8.39208242]
[1735747641346,3.04,191.59,191.58,11.00738242]
[1735747641952,2.6147,191.63,191.58,11.00738242]
[1735747642157,54.36,191.76,191.62,8.39208242]
[1735747642350,7.7668,191.75,191.64,8.39208242]
[1735747642543,2.6138,191.7,191.65,2.6144]
[1735747642744,3.04,191.69,191.66,8.39208242]
[1735747643052,4.7268,191.75,191.68,8.39208242]
[1735747643246,3.04,191.74,191.68,8.39208242]
[1735747643553,2.6136,191.71,191.66,8.39208242]
[1735747644256,2.6136,191.71,191.64,13.09743142]
[1735747644443,2.6136,191.71,191.65,2.6143]
[1735747644848,3.04,191.74,191.65,2.6143]
[1735747645058,13.09743142,191.73,191.61,13.09743142]
[1735747645846,2.614,191.68,191.62,2.6147]
[1735747646045,3.04,191.67,191.61,13.09743142]
[1735747646246,3.04,191.67,191.64,13.09743142]
[1735747646449,3.04,191.67,191.66,2.6142]
[1735747646856,3.04,191.69,191.64,13.09743142]
[1735747647056,3.04,191.7,191.64,13.09743142]
[1735747647755,3.04,191.7,191.67,13.09743142]
[1735747648052,3.04,191.73,191.67,13.09743142]
[1735747648258,3.04,191.73,191.68,2.6138]
[1735747648450,3.04,191.73,191.67,13.09743142]
[1735747649053,54.36,191.76,191.67,13.09743142]
[1735747649260,3.04,191.72,191.67,13.09743142]
[1735747650758,3.04,191.72,191.57,7.13224428]
[1735747650964,3.04,191.72,191.63,13.09743142]
[1735747651159,3.04,191.72,191.66,13.09743142]
[1735747651763,3.04,191.72,191.69,2.6138]
[1735747652159,3.04,191.72,191.66,13.09743142]
[1735747653562,3.04,191.72,191.63,13.09743142]
[1735747653758,1.6256,191.71,191.63,13.09743142]
[1735747653967,2.6142,191.67,191.63,13.09743142]
[1735747654168,3.04,191.66,191.63,13.09743142]
[1735747655368,3.04,191.66,191.6,13.09743142]
[1735747656565,5.6543,191.66,191.61,2.6149]
[1735747656771,5.6543,191.66,191.6,13.09743142]
[1735747656772,3.04,191.66,191.6,13.09743142]
[1735747658575,2.6144,191.65,191.6,15.71243142]
[1735747658775,3.04,191.66,191.6,13.09743142]
[1735747659074,3.04,191.66,191.61,2.6148]
[1735747660471,5.6543,191.66,191.61,2.6148]
[1735747661376,5.6543,191.66,191.62,2.6148]
[1735747662070,3.04,191.66,191.6,13.09743142]
[1735747662276,3.04,191.66,191.63,13.09743142]
[1735747662478,3.04,191.66,191.55,3.1208]
[1735747662670,3.04,191.66,191.59,13.09743142]
[1735747663073,3.1458,191.7,191.59,13.09743142]
[1735747663276,3.04,191.69,191.59,13.09743142]
[1735747663472,2.6141,191.67,191.62,2.6148]
[1735747663669,3.1458,191.7,191.62,13.09743142]
[1735747663877,3.04,191.66,191.62,13.09743142]
[1735747664679,3.04,191.66,191.65,2.6144]
[1735747665474,5.7595,191.7,191.65,2.6144]
[1735747665680,3.04,191.69,191.62,13.09743142]
[1735747665980,3.04,191.69,191.65,13.09743142]
[1735747667379,3.04,191.69,191.62,13.09743142]
[1735747668381,2.614,191.68,191.65,8.3837298]
[1735747668882,3.04,191.69,191.65,8.3837298]
[1735747669082,5.6538,191.69,191.65,8.3837298]
[1735747669282,3.04,191.69,191.65,8.3837298]
[1735747670483,5.6539,191.69,191.65,8.3837298]
[1735747670678,3.04,191.69,191.65,8.3837298]
[1735747671579,2.614,191.68,191.65,8.3837298]
[1735747672085,3.04,191.69,191.67,8.3837298]
[1735747672885,4.7381,191.73,191.67,8.3837298]
[1735747673085,7.3514,191.73,191.67,8.3837298]
[1735747673286,3.04,191.72,191.67,8.3837298]
[1735747673888,5.6535,191.72,191.67,8.3837298]
[1735747674090,5.6535,191.72,191.67,10.9978298]
[1735747675487,3.04,191.72,191.67,10.9978298]
[1735747675688,2.6136,191.71,191.67,10.9978298]
[1735747675885,3.04,191.72,191.67,8.3837298]
[1735747676086,2.6144,191.66,191.62,8.3837298]
[1735747676291,3.04,191.65,191.62,8.3837298]
[1735747676687,3.04,191.65,191.64,8.3837298]
[1735747677793,3.04,191.65,191.64,10.9982298]
[1735747681093,4.7381,191.73,191.64,8.3837298]
[1735747681094,3.04,191.69,191.64,8.3837298]
[1735747681295,3.04,191.69,191.67,10.9978298]
[1735747681496,4.7381,191.73,191.67,8.3837298]
[1735747681689,3.04,191.71,191.7,8.3837298]
[1735747681893,62.7437298,191.76,191.7,8.3837298]
[1735747682094,4.7939,191.83,191.72,8.3837298]
[1735747682389,8.3837298,191.78,191.72,8.3837298]
[1735747682698,3.04,191.77,191.72,8.3837298]
[1735747683495,2.613,191.75,191.72,8.3837298]
[1735747684097,2.6131,191.74,191.72,8.3837298]
[1735747684495,2.6131,191.74,191.7,8.3837298]
[1735747686407,2.6129,191.76,191.71,2.6134]
[1735747686701,2.6129,191.76,191.72,8.3837298]
[1735747688505,3.04,191.77,191.72,8.3837298]
[1735747688706,2.6131,191.75,191.72,8.3837298]
[1735747689700,3.04,191.77,191.7,10.9974298]
[1735747690003,2.613,191.75,191.7,10.9974298]
[1735747691603,8.3837298,191.74,191.64,3.1192]
[1735747691810,9.9798298,191.74,191.67,8.3837298]
[1735747692200,8.3837298,191.72,191.65,8.3837298]
[1735747692402,8.3837298,191.7,191.63,8.3837298]
[1735747692705,8.3837298,191.68,191.63,8.3837298]
[1735747692903,8.3837298,191.68,191.61,8.3837298]
[1735747693512,8.3837298,191.66,191.61,8.3837298]
[1735747693700,3.04,191.65,191.59,8.3837298]
[1735747693904,4.6361,191.65,191.59,8.3837298]
[1735747694206,2.6147,191.63,191.59,8.3837298]
[1735747694603,2.6147,191.62,191.57,10.9991298]
[1735747694807,8.3837298,191.64,191.56,8.3837298]
[1735747695310,6.2462,191.65,191.58,8.3837298]
[1735747695506,8.3837298,191.64,191.58,8.3837298]
[1735747695800,8.3837298,191.62,191.56,8.3837298]
[1735747696006,2.615,191.61,191.56,8.3837298]
[1735747696206,3.04,191.6,191.52,13.11410253]
[1735747696405,3.04,191.59,191.52,13.11410253]
[1735747696606,3.04,191.58,191.52,13.11410253]
[1735747697512,3.04,191.58,191.54,2.6158]
[1735747700310,2.6148,191.62,191.56,2.6154]
[1735747700512,3.04,191.61,191.55,13.11410253]
[1735747701306,3.04,191.61,191.59,2.6151]
[1735747702112,3.2062,191.65,191.59,2.6151]
[1735747702412,3.04,191.64,191.6,2.6149]
[1735747702606,3.04,191.64,191.58,13.11410253]
[1735747702811,1.6073,191.69,191.61,13.11410253]
[1735747703006,3.04,191.68,191.61,13.11410253]
[1735747703410,3.04,191.68,191.62,2.6147]
[1735747704013,3.04,191.68,191.61,15.72890253]
[1735747704607,2.6141,191.67,191.61,13.11410253]
[1735747704811,3.04,191.68,191.62,2.6147]
[1735747705009,3.04,191.68,191.61,13.11410253]
[1735747705309,3.04,191.68,191.59,2.6151]
[1735747705705,3.04,191.68,191.58,13.11410253]
[1735747705911,2.6143,191.65,191.59,2.6151]
[1735747707210,3.04,191.68,191.58,13.11410253]
[1735747707801,3.04,191.67,191.6,2.6149]
[1735747708007,57.4747,191.71,191.61,13.11410253]
[1735747708008,3.04,191.66,191.61,13.11410253]
[1735747708911,3.04,191.66,191.61,15.72880253]
[1735747709410,3.04,191.66,191.62,2.6147]
[1735747712713,3.04,191.66,191.6,2.6149]
[1735747714310,2.6146,191.64,191.58,15.72920253]
[1735747715914,2.6146,191.64,191.59,2.6151]
[1735747716510,3.04,191.66,191.58,13.11410253]
[1735747716716,2.6144,191.65,191.6,2.615]
[1735747717817,2.6144,191.64,191.6,2.615]
[1735747718216,3.04,191.66,191.61,8.38772933]
[1735747718617,2.6144,191.65,191.61,8.38772933]
[1735747718819,3.04,191.66,191.6,2.615]
[1735747719622,2.6143,191.65,191.6,2.615]
[1735747722726,5.6542,191.66,191.61,11.00252933]
[1735747725523,5.6542,191.66,191.63,8.38772933]
[1735747726129,3.04,191.66,191.61,11.00252933]
[1735747726427,2.6143,191.65,191.61,11.00252933]
[1735747726627,2.6143,191.65,191.61,2.6148]
[1735747726830,2.6143,191.65,191.61,11.00252933]
[1735747728327,3.04,191.66,191.61,8.38772933]
[1735747728526,3.04,191.66,191.63,2.6146]
[1735747729133,3.04,191.66,191.63,11.00232933]
[1735747730026,3.04,191.67,191.65,8.38772933]
[1735747730434,3.04,191.69,191.65,8.38772933]
[1735747730626,3.04,191.69,191.67,8.38772933]
[1735747731537,3.04,191.7,191.67,8.38772933]
[1735747732436,3.04,191.7,191.67,11.00172933]
[1735747733236,3.04,191.7,191.69,2.6138]
[1735747733633,3.04,191.71,191.69,2.6138]
[1735747735644,3.04,191.71,191.68,2.6139]
[1735747736040,3.04,191.71,191.67,8.38772933]
[1735747737433,5.6536,191.71,191.67,8.38772933]
[1735747738040,3.04,191.71,191.67,8.38772933]
[1735747738238,2.6136,191.7,191.67,8.38772933]
[1735747738836,3.04,191.71,191.67,8.38772933]
[1735747739042,5.6535,191.71,191.67,8.38772933]
[1735747739238,3.04,191.71,191.65,8.38772933]
[1735747739438,2.6138,191.69,191.65,8.38772933]
[1735747743841,5.6536,191.71,191.67,8.38772933]
[1735747744137,3.04,191.71,191.67,8.38772933]
[1735747744338,35.32984561,191.76,191.67,8.38772933]
[1735747744543,2.6131,191.74,191.69,11.00132933]
[1735747745139,3.04,191.73,191.69,11.00132933]
[1735747746140,5.6533,191.73,191.69,8.38772933]
[1735747746342,3.04,191.73,191.69,8.38772933]
[1735747746637,3.04,191.73,191.67,8.38772933]
[1735747747142,2.6135,191.71,191.67,8.38772933]
[1735747747541,3.04,191.73,191.58,7.13224428]
[1735747747743,8.38772933,191.7,191.63,8.38772933]
[1735747748443,2.614,191.67,191.63,11.00232933]
[1735747748646,3.04,191.66,191.63,11.00232933]
[1735747749441,5.6542,191.66,191.62,8.38772933]
[1735747750047,3.04,191.66,191.62,11.00242933]
[1735747750247,3.04,191.66,191.62,8.38772933]
[1735747750950,3.04,191.66,191.64,8.38772933]
[1735747751949,8.38772933,191.74,191.64,8.38772933]
[1735747752153,3.04,191.73,191.67,8.38772933]
[1735747752549,2.6132,191.74,191.69,8.38772933]
[1735747752748,3.04,191.73,191.69,8.38772933]
[1735747753453,2.6132,191.74,191.69,11.00142933]
[1735747753755,3.04,191.73,191.69,11.00142933]
[1735747754657,3.04,191.73,191.69,8.38772933]
[1735747754853,2.6134,191.72,191.68,2.6139]
[1735747755053,3.04,191.73,191.69,8.38772933]
[1735747755353,9.89512933,191.76,191.69,8.38772933]
[1735747755656,1.5074,191.76,191.71,8.38772933]
[1735747755953,3.04,191.75,191.73,8.38772933]
[1735747756154,2.6123,191.8,191.76,2.6128]
[1735747756357,3.04,191.79,191.76,2.6128]
[1735747756746,2.6123,191.8,191.75,8.38772933]
[1735747756747,2.6123,191.8,191.75,11.00062933]
[1735747756947,3.04,191.79,191.75,11.00062933]
[1735747757653,3.04,191.78,191.75,11.00062933]
[1735747757852,8.85611101,191.86,191.77,8.38772933]
[1735747758060,3.04,191.85,191.79,8.38772933]
[1735747758252,3.04,191.85,191.81,8.38772933]
[1735747758858,5.6516,191.85,191.81,8.38772933]
[1735747759455,2.6119,191.83,191.81,8.38772933]
[1735747760257,3.04,191.85,191.81,8.38772933]
[1735747760454,11.50022933,191.87,191.81,8.38772933]
[1735747760655,8.38772933,191.85,191.79,8.38772933]
[1735747762460,2.6119,191.83,191.79,8.38772933]
[1735747765360,8.38772933,191.85,191.79,8.38772933]
[1735747766761,2.6119,191.83,191.79,8.38772933]
[1735747766964,8.38772933,191.85,191.79,8.38772933]
[1735747767162,2.6121,191.82,191.79,8.38772933]
[1735747767362,3.04,191.81,191.79,8.38772933]
[1735747772875,3.1125,191.87,191.79,8.38772933]
[1735747773078,3.04,191.86,191.81,8.38772933]
[1735747773276,3.04,191.86,191.83,8.38772933]
[1735747773472,5.6514,191.86,191.83,8.38772933]
[1735747775472,3.04,191.86,191.83,8.38772933]
[1735747775677,2.6115,191.85,191.83,8.38772933]
[1735747775870,2.6115,191.85,191.81,2.612]
[1735747775871,3.04,191.86,191.81,8.38772933]
[1735747776078,2.6116,191.84,191.79,10.99992933]
[1735747776374,2.6116,191.84,191.79,8.38772933]
[1735747776779,2.6118,191.83,191.79,8.38772933]
[1735747777979,2.6119,191.82,191.79,8.38772933]
[1735747778181,3.04,191.81,191.79,8.38772933]
[1735747779083,5.6521,191.81,191.77,8.38772933]
[1735747779379,5.6521,191.81,191.72,49.72841283]
[1735747779380,3.04,191.81,191.72,49.72841283]
[1735747779587,2.6123,191.79,191.72,49.72841283]
[1735747779882,2.6123,191.79,191.75,8.38772933]
[1735747780277,2.6122,191.8,191.75,8.38772933]
[1735747780678,3.04,191.81,191.75,8.38772933]
[1735747780878,2.6125,191.78,191.75,8.38772933]
[1735747781679,8.38772933,191.8,191.75,8.38772933]
[1735747781880,2.6123,191.79,191.75,8.38772933]
[1735747782982,2.6125,191.78,191.75,8.38772933]
[1735747783179,3.04,191.81,191.77,8.38772933]
[1735747783987,2.6122,191.8,191.77,8.38772933]
[1735747786682,2.6124,191.78,191.74,2.613]
[1735747786883,8.38772933,191.8,191.74,8.38772933]
[1735747787289,8.38772933,191.8,191.72,49.72841283]
[1735747787482,8.38772933,191.8,191.74,8.38772933]
[1735747788488,2.6125,191.78,191.74,11.00072933]
[1735747790185,2.6123,191.79,191.74,11.00072933]
[1735747790387,2.6123,191.79,191.76,8.38772933]
[1735747791490,2.6125,191.78,191.74,8.38772933]
[1735747792890,2.6125,191.78,191.74,11.00072933]
[1735747793086,4.6768,191.81,191.74,8.38772933]
[1735747793293,1.6368,191.81,191.76,8.38772933]
[1735747793589,3.04,191.8,191.77,8.38772933]
[1735747795892,3.04,191.8,191.77,11.00022933]
[1735747796093,5.6522,191.8,191.77,8.38772933]
[1735747796790,2.6122,191.8,191.77,8.38772933]
[1735747796996,3.04,191.79,191.77,8.38772933]
[1735747798396,3.04,191.79,191.76,2.6127]
[1735747798593,3.04,191.79,191.76,11.00042933]
[1735747801695,3.04,191.79,191.76,8.38772933]
[1735747801898,3.04,191.79,191.78,8.38772933]
[1735747802687,3.04,191.79,191.72,49.72841283]
[1735747802991,3.04,191.79,191.74,8.38772933]
[1735747803193,2.6125,191.78,191.74,8.38772933]
[1735747803593,3.04,191.79,191.74,8.38772933]
[1735747804393,2.6126,191.77,191.74,8.38772933]
[1735747804798,3.04,191.79,191.74,8.38772933]
[1735747805895,3.04,191.79,191.76,8.38772933]
[1735747806593,3.04,191.79,191.75,2.6127]
[1735747806795,3.04,191.79,191.76,8.38772933]
[1735747808294,2.6125,191.78,191.76,8.38772933]
[1735747808901,3.04,191.79,191.76,8.38772933]
[1735747809502,5.6524,191.79,191.76,8.38772933]
[1735747810400,11.42772933,191.79,191.72,49.72841283]
[1735747810705,8.38772933,191.75,191.69,8.38772933]
[1735747810902,3.04,191.74,191.69,8.38772933]
[1735747811297,2.6132,191.73,191.69,8.38772933]
[1735747811499,3.04,191.74,191.69,8.38772933]
[1735747811901,5.6531,191.74,191.69,11.00122933]
[1735747812101,3.04,191.74,191.71,8.38772933]
[1735747812300,3.04,191.74,191.73,8.38772933]
[1735747814604,3.04,191.74,191.73,11.00082933]
[1735747816304,3.04,191.77,191.75,2.6128]
[1735747816510,3.04,191.77,191.76,8.38772933]
[1735747819213,3.04,191.78,191.76,8.38772933]
[1735747819416,3.04,191.78,191.77,8.38772933]
[1735747819918,2.612,191.82,191.77,8.38772933]
[1735747820123,4.1667,191.85,191.81,8.38772933]
[1735747820414,8.87325291,191.86,191.83,8.38772933]
[1735747820715,3.04,191.84,191.83,8.38772933]
[1735747821715,8.38772933,191.9,191.83,8.38772933]
[1735747821908,3.04,191.85,191.83,8.38772933]
[1735747825017,2.6116,191.84,191.81,8.38772933]
[1735747825419,3.04,191.85,191.81,8.38772933]
[1735747826525,3.04,191.85,191.81,10.99962933]
[1735747826715,3.04,191.85,191.83,8.38772933]
[1735747831022,2.6113,191.87,191.83,10.99952933]
[1735747831223,3.04,191.86,191.83,10.99952933]
[1735747833327,5.6514,191.86,191.83,8.38772933]
[1735747834026,2.6116,191.85,191.81,8.38772933]
[1735747834226,3.04,191.86,191.81,8.38772933]
[1735747834922,2.6116,191.85,191.81,10.99972933]
[1735747837426,2.6116,191.85,191.82,2.6119]
[1735747837722,5.6514,191.86,191.83,8.38772933]
[1735747839325,3.04,191.86,191.85,8.38772933]
[1735747839829,3.04,191.87,191.85,8.38772933]
[1735747840529,2.6111,191.88,191.85,8.38772933]
[1735747840731,3.04,191.87,191.85,8.38772933]
[1735747841927,3.04,191.87,191.81,2.6119]
[1735747842125,11.42772933,191.87,191.82,8.38772933]
[1735747842323,2.6119,191.82,191.77,2.6125]
[1735747842629,2.6119,191.82,191.8,8.38772933]
[1735747843029,3.04,191.82,191.8,8.38772933]
[1735747843230,3.04,191.82,191.8,10.99992933]
[1735747847533,2.6115,191.85,191.8,10.99992933]
[1735747847735,3.04,191.84,191.82,8.38772933]
[1735747851132,3.04,191.84,191.73,28.52897713]
[1735747851333,4.5977,191.84,191.77,8.38772933]
[1735747851534,2.612,191.82,191.77,8.38772933]
[1735747851730,8.38772933,191.83,191.77,8.38772933]
[1735747851929,8.38772933,191.83,191.73,7.13224428]
[1735747852234,2.6123,191.79,191.75,11.00052933]
[1735747852533,3.04,191.78,191.75,11.00052933]
[1735747852729,3.04,191.77,191.75,11.00052933]
[1735747853243,3.04,191.77,191.75,8.38772933]
[1735747853733,3.04,191.77,191.7,28.52897713]
[1735747853928,3.04,191.77,191.73,8.38772933]
[1735747854130,3.04,191.77,191.7,28.52897713]
[1735747854332,3.04,191.77,191.73,8.38772933]
[1735747855539,2.6127,191.76,191.73,8.38772933]
[1735747855739,3.04,191.77,191.73,8.38772933]
[1735747856139,2.6127,191.76,191.73,8.38772933]
[1735747856741,2.6129,191.75,191.71,11.00112933]
[1735747856942,2.6129,191.75,191.71,8.38772933]
[1735747857939,2.6129,191.75,191.71,11.00112933]
[1735747859244,8.38772933,191.76,191.67,49.74418296]
[1735747859549,2.6133,191.73,191.69,8.38772933]
[1735747859744,3.04,191.72,191.69,8.38772933]
[1735747860547,5.6533,191.72,191.69,8.38772933]
[1735747860744,5.6533,191.72,191.67,52.35808296]
[1735747860945,2.6135,191.71,191.67,49.74418296]
[1735747861443,3.04,191.72,191.68,8.38772933]
[1735747862047,5.6534,191.72,191.68,8.38772933]
[1735747863447,3.04,191.71,191.7,8.38772933]
[1735747864451,3.04,191.71,191.7,11.00122933]
[1735747865053,3.04,191.71,191.7,8.38772933]
[1735747865952,3.04,191.71,191.68,8.38772933]
[1735747866652,2.6135,191.7,191.67,49.74418296]
[1735747866853,11.42772933,191.71,191.59,28.52897713]
[1735747867049,8.38772933,191.69,191.62,8.38772933]
[1735747867763,2.614,191.67,191.62,8.38772933]
[1735747868053,3.04,191.66,191.62,8.38772933]
[1735747868252,3.04,191.66,191.57,8.61734428]
[1735747868553,3.04,191.66,191.62,8.38772933]
[1735747869158,2.6143,191.65,191.6,2.6149]
[1735747869454,2.6143,191.65,191.6,8.38772933]
[1735747869455,8.38772933,191.65,191.6,8.38772933]
[1735747870156,2.6146,191.63,191.6,8.38772933]
[1735747870655,8.38772933,191.63,191.58,8.38772933]
[1735747870859,2.6147,191.62,191.58,8.38772933]
[1735747871152,4.8161,191.7,191.6,8.38772933]
[1735747871153,8.38772933,191.65,191.6,8.38772933]
[1735747871357,3.04,191.64,191.6,11.00252933]
[1735747871556,3.04,191.63,191.6,11.00252933]
[1735747871758,2.6142,191.66,191.62,8.38772933]
[1735747871960,3.04,191.65,191.62,8.38772933]
[1735747872160,3.04,191.65,191.6,8.38772933]
[1735747873053,3.04,191.65,191.62,8.38772933]
[1735747874860,3.04,191.65,191.62,11.00232933]
[1735747875461,3.04,191.65,191.62,8.38772933]
[1735747876163,5.6543,191.65,191.62,8.38772933]
[1735747876365,11.42772933,191.65,191.6,8.38772933]
[1735747877564,2.6146,191.63,191.59,2.615]
[1735747878464,2.6144,191.64,191.6,2.6149]
[1735747878663,11.42772933,191.65,191.6,2.6149]
[1735747878864,3.04,191.65,191.6,11.00262933]
[1735747879365,3.04,191.65,191.6,8.38772933]
[1735747880464,3.04,191.65,191.61,2.6148]